{"text_format":"1","workbook":"xlsx","n_sheets":6,"sheets":["Navigation","Cover","Justification","POCO Summary","Description","CO-2.3 Summary"],"not_rendered":{"charts":0,"images":0,"macros":1,"external_links":0,"defined_names":6,"comments":0,"pivot_tables":0},"unopened":[],"bounds":{"document_bytes":16777216,"sheet_cells":100000,"rows_first":2000,"rows_last":500,"rows_between":2000,"halvings":0,"cell_chars":16384,"cell_head_chars":4096},"cells_cut":0,"cells_raw":0,"read":"whole","date_system":"1900"}

{"sheet":"Navigation","index":0,"n_rows":15,"n_cols":4,"rows_kept":15,"cut":false,"hidden":false,"merged":[]}
[" "]
[null,"A/E Project Order Change Order"]
[null,"Navigation Pane"]
[]
[null,"Cover",null,"Start with this tab and enter project information."]
[]
[null,"Justification",null,"Document project order change order justification here."]
[]
[null,"Project Order Change Order Summary",null,"A continuation sheet from the Justification sheet to list additional previous change orders."]
[]
[null,"Description",null,"This sheet provides additional space to describe the change order."]
[]
[null,"CO-2.3 Summary",null,"List all change items from the CO-2.3s on this tab."]
[]
[null,"Transmittal",null,"Complete all sections including submittal requirements and description."]

{"sheet":"Cover","index":1,"n_rows":63,"n_cols":41,"rows_kept":63,"cut":false,"hidden":false,"merged":[[32,2,32,44],[0,1,0,13],[40,13,40,22],[34,2,34,24],[41,2,41,11],[35,2,35,15],[39,2,39,44],[36,2,37,44],[38,0,38,44],[23,2,29,44],[31,2,31,4],[11,2,11,8],[1,40,1,42],[3,1,3,24],[8,33,8,43],[7,0,7,44],[1,1,1,19],[5,47,5,54],[49,20,52,43],[40,35,40,44],[34,25,34,33],[14,2,14,7],[14,10,14,44],[15,0,15,44],[5,0,5,6],[6,0,6,6],[11,10,11,44],[5,37,5,44],[20,2,20,6],[8,30,8,32],[8,23,8,27],[10,0,10,44],[64,1,64,17],[13,2,13,9],[17,5,19,44],[45,0,45,44],[40,2,40,11],[40,24,40,33],[41,24,41,33],[43,13,43,22],[43,2,43,11],[43,24,43,33],[47,19,47,44],[22,2,22,44],[21,15,21,25],[17,2,17,3],[16,2,16,3],[62,21,62,37],[13,10,13,44],[31,6,31,8],[8,3,8,22],[31,10,31,29],[31,30,31,38],[12,10,12,44],[48,19,48,44],[57,21,57,43],[41,13,41,22],[43,35,43,44],[41,35,41,44],[63,21,63,43],[63,1,63,17],[57,1,57,17],[51,1,51,17],[52,1,52,17],[58,1,58,17],[56,21,56,37]]}
[null,"Go to Navigation Sheet"]
[null,"Go to Sheet 2  (Agency Justification Form)",null,null,null,null,null,null,null,null,null,null,null,null,null,null,null,null,null,null,null,"Does agency have delegated approval authority?",null,null,null,null,null,null,null,null,null,null,null,null,null,null,null,null,null,null,"YES"]
[]
[null,"Go to Sheet 4  (Change Description Continuation Sheet)"]
[]
["DGS-30-101",null,null,null,null,null,null,null,null,null,null,null,null,null,null,null,null,null,null,null,null,null,null,null,null,null,null,null,null,null,null,null,null,null,null,null,null,{"$f":"IF(AO2=\"NO\",\"CO-11.1ae\",\"HECO-11.1ae\")","v":"HECO-11.1ae"}]
["(Rev. 03/20)"]
["ARCHITECT/ENGINEER PROJECT ORDER CHANGE ORDER"]
[null,null,null,"Project Order Change Order Number:",null,null,null,null,null,null,null,null,null,null,null,null,null,null,null,null,null,null,null,null,null,null,null,null,null,null,"Date:"]
[]
["PROJECT DESCRIPTION"]
[null,null,"Project Code:"]
[null,null,"Project Order No.:"]
[null,null,"Institution/Agency:",null,null,null,null,null,null,null,"The College of William and Mary in Virginia"]
[null,null,"Project Title:"]
["CHANGE DESCRIPTION"]
[]
[null,null,"TO:"]
[]
[]
[]
[null,null,"Under your Project Order dated",null,null,null,null,null,null,null,null,null,null,null,null,null,null,null,null,null,null,null,null,null,null,null,null,"for work on the project shown above,"]
[null,null,"you are hereby authorized to make the following additions, deletions, and/or changes to your Scope of Work:"]
[]
[]
[]
[]
[]
[]
[]
[]
[null,null,"and to",null,null,null,"add to",null,null,null,"deduct from your project order amount, the sum of:"]
[null,null,{"$f":"spellnumber(AE32)","v":"No Dollars and No Cents"}]
[]
[null,null,"The \"Design not to exceed\" Budget shall now be:                                                                 $  ___________________"]
[null,null,"The adjusted schedule is as follows:"]
[]
[]
["PROJECT ORDER COST SUMMARY"]
[null,null,"(Show summary of all additive and deductive project order change orders on bottom of Sheet 2.)"]
[null,null,"AMOUNT OF ORIGINAL",null,null,null,null,null,null,null,null,null,null,"TOTAL",null,null,null,null,null,null,null,null,null,null,"TOTAL",null,null,null,null,null,null,null,null,null,null,"AMOUNT OF PROJECT"]
[null,null,"PROJECT ORDER",null,null,null,null,null,null,null,null,null,null,"ADDITIONS",null,null,null,null,null,null,null,null,null,null,"DEDUCTIONS",null,null,null,null,null,null,null,null,null,null,"ORDER TO DATE"]
[]
[null,null,null,null,null,null,null,null,null,null,null,null,"+",{"$f":"Justification!BA53","v":0},null,null,null,null,null,null,null,null,null,"-",{"$f":"Justification!BA59*-1","v":0},null,null,null,null,null,null,null,null,null,"=",{"$f":"C44+N44-Y44","v":0}]
[]
["CHANGE AUTHORIZATION"]
[]
["Accepted By:"]
[]
[null,null,null,null,null,null,null,null,null,null,null,null,null,null,null,null,null,null,null,null,"Prior approval by the Chief Operating Officer is required for each Project Order Change Order which causes an increase in the Project Order Price if the resulting cumulative sum of all Project Order Change Orders exceeds 25% of the original Project Order Amount or $50,000, whichever is greater."]
[null,"Architect/Engineer",null,null,null,null,null,null,null,null,null,null,null,"Date"]
[]
[]
["Recommended By:",null,null,null,null,null,null,null,null,null,null,null,null,null,null,null,null,null,null,null,"Approved By:"]
[]
[]
[null,"Director, FPDC",null,null,null,null,null,null,null,null,null,null,null,"Date",null,null,null,null,null,null,null,{"$f":"IF(AO2=\"NO\",\"Chief Operating Officer\",\"Authorized Agency Representative\")","v":"Authorized Agency Representative"},null,null,null,null,null,null,null,null,null,null,null,null,null,null,null,null,null,"Date"]
[]
[]
["Approved By:"]
[]
[]
[null,"Authorized Agency Representative",null,null,null,null,null,null,null,null,null,null,null,"Date"]

{"sheet":"Justification","index":2,"n_rows":61,"n_cols":54,"rows_kept":61,"cut":false,"hidden":false,"merged":[[50,5,50,31],[44,0,44,43],[8,0,8,44],[49,5,49,31],[6,38,6,44],[30,0,30,44],[37,0,37,44],[9,9,9,32],[17,2,22,43],[24,2,29,43],[14,9,14,15],[15,16,15,27],[23,0,23,44],[16,0,16,44],[14,16,14,43],[6,33,6,34],[52,5,52,31],[53,5,53,31],[54,5,54,31],[57,33,57,39],[55,5,55,31],[58,33,58,39],[59,33,59,39],[60,33,60,39],[56,5,56,31],[57,5,57,31],[58,5,58,31],[0,1,0,13],[1,20,1,44],[3,0,3,6],[5,0,5,44],[1,1,1,16],[3,38,3,44],[4,0,4,6],[59,0,59,3],[31,2,36,43],[38,2,43,43],[53,0,53,3],[54,0,54,3],[56,0,56,3],[50,33,50,39],[58,0,58,3],[57,0,57,3],[51,0,51,3],[48,0,48,3],[49,0,49,3],[52,0,52,3],[55,0,55,3],[47,0,47,3],[50,0,50,3],[58,40,58,43],[50,40,50,43],[51,40,51,43],[52,40,52,43],[53,40,53,43],[54,40,54,43],[55,40,55,43],[6,5,6,10],[6,18,6,22],[56,40,56,43],[57,40,57,43],[51,33,51,39],[52,33,52,39],[53,33,53,39],[54,33,54,39],[55,33,55,39],[11,9,11,26],[10,9,10,21],[12,9,12,24],[13,9,13,21],[13,22,13,43],[56,33,56,39],[51,5,51,31]]}
[null,"Go to Navigation Sheet"]
[null,"Go to Sheet 1 (Project Order Change Order Form)",null,null,null,null,null,null,null,null,null,null,null,null,null,null,null,null,null,null,"Go to Sheet 3 (Summary of Changes continuation sheet)"]
[]
[{"$f":"Cover!A6","v":"DGS-30-101"},null,null,null,null,null,null,null,null,null,null,null,null,null,null,null,null,null,null,null,null,null,null,null,null,null,null,null,null,null,null,null,null,null,null,null,null,null,{"$f":"Cover!AL6","v":"HECO-11.1ae"}]
[{"$f":"Cover!A7","v":"(Rev. 03/20)"}]
["AGENCY JUSTIFICATION for A/E PROJECT ORDER CHANGE ORDER"]
["Proj. Code:",null,null,null,null,{"$f":"Cover!K12","v":0},null,null,null,null,null,"Project Order #:",null,null,null,null,null,null,{"$f":"Cover!K13","v":0},null,null,null,null,"Proj. Ord. Chg Ord. #:",null,null,null,null,null,null,null,null,null,{"$f":"Cover!X9","v":0},null,"Date:",null,null,{"$f":"Cover!AH9","v":"00:00:00"}]
[]
["REASON FOR PROJECT ORDER CHANGE ORDER"]
[null,null,null,null,null,null,null,null,null,"Existing building or utility conditions not as shown for design"]
[null,null,null,null,null,null,null,null,null,"Change in Agency requirement"]
[null,null,null,null,null,null,null,null,null,"Unforseen site conditions during construction"]
[null,null,null,null,null,null,null,null,null,"Additional construction period services"]
[null,null,null,null,null,null,null,null,null,"A/E error or omission (describe): "]
[null,null,null,null,null,null,null,null,null,"Other (describe): "]
[null,null,null,null,null,null,null,null,null,null,null,null,null,null,null,null,"JUSTIFICATION"]
["1) Agency's explanation of why the work was required: "]
[]
[]
[]
[]
[]
[]
["2) When was the change in requirements (function, mission) known? (explain)"]
[]
[]
[]
[]
[]
[]
["3) Why was this work not included in the original project order negotiations? (explain)"]
[]
[]
[null,null,null,null,null,null,null,null,null,null,null,null,null,null,null,null,null,null,null,null,null,null,null,null,null,null,null,null,null,null,null,null,null,null,null,null,null,null,null,null,null,null,null,null,null,null,null,null,null,null,null," "]
[]
[]
[]
["4) If change in construction period services, will the contractor contribute to this POCO? (explain)"]
[]
[]
[]
[]
[]
[]
["SUMMARY OF PROJECT ORDER CHANGE ORDERS"]
[null,null,null,null,null,null,null,null,null,null,null,null,null,null,null,null,null,null,null,null,null,null,"Breakout detail for current Project Order Change Order on CO-2.3 Summary tab."]
[null,null,null,null,null,null,null,null,null,null,null,null,null,null,null,null,null,null,null,null,null,null,"If additional space is required, use the Project Order Change Order Summary sheet.",null,null,null,null,null,null,null,null,null,null,null,null,null,null,null,null,null,null,"Governor's"]
[null,null,null,null,null,null,null,null,null,null,null,null,null,null,null,null,null,null,null,null,null,null,null,null,null,null,null,null,null,null,null,null,null,null,null,null,null,null,null,null,null,"Designee's"]
["POCO",null,null,null,null,null,null,null,null,null,null,null,null,null,null,null,null,null,null,null,null,null,null,null,null,null,null,null,null,null,null,null,null,null,null,null,"POCO",null,null,null,null,"Approval"]
["Number",null,null,null,null,"Project Order Change Order Description",null,null,null,null,null,null,null,null,null,null,null,null,null,null,null,null,null,null,null,null,null,null,null,null,null,null,null,null,null,null,"Amount",null,null,null,null,"Req'd?",null,null,null,null,null,null,null,null,null,null,"Additions","Cumulative"]
[null,null,null,null,null,null,null,null,null,null,null,null,null,null,null,null,null,null,null,null,null,null,null,null,null,null,null,null,null,null,null,null,null,null,null,null,null,null,null,null,{"$f":"IF(A51=\"\",\"\",IF(AND(AH51>0,AH51>(0.25*Cover!$C$44),AH51>50000),\"YES\",\"NO\"))","v":""},null,null,null,null,null,null,null,null,null,null,null,{"$f":"'POCO Summary'!BA55","v":0},{"$f":"AH51","v":0}]
[null,null,null,null,null,null,null,null,null,null,null,null,null,null,null,null,null,null,null,null,null,null,null,null,null,null,null,null,null,null,null,null,null,null,null,null,null,null,null,null,{"$f":"IF(A52=\"\",\"\",IF(AND(AH52>0,BB52>(0.25*Cover!$C$44),BB52>50000),\"YES\",\"NO\"))","v":""},null,null,null,null,null,null,null,null,null,null,null,{"$f":"SUMIF(AH51:AH59,\">0\",AH51:AH59)","v":0},{"$f":"IF(A52=\"\",\"\",BB51+AH52)","v":""}]
[null,null,null,null,null,null,null,null,null,null,null,null,null,null,null,null,null,null,null,null,null,null,null,null,null,null,null,null,null,null,null,null,null,null,null,null,null,null,null,null,{"$f":"IF(A53=\"\",\"\",IF(AND(AH53>0,BB53>(0.25*Cover!$C$44),BB53>50000),\"YES\",\"NO\"))","v":""},null,null,null,null,null,null,null,null,null,null,null,{"$f":"SUM(BA51:BA52)","v":0},""]
[null,null,null,null,null,null,null,null,null,null,null,null,null,null,null,null,null,null,null,null,null,null,null,null,null,null,null,null,null,null,null,null,null,null,null,null,null,null,null,null,{"$f":"IF(A54=\"\",\"\",IF(AND(AH54>0,BB54>(0.25*Cover!$C$44),BB54>50000),\"YES\",\"NO\"))","v":""},null,null,null,null,null,null,null,null,null,null,null,null,""]
[null,null,null,null,null,null,null,null,null,null,null,null,null,null,null,null,null,null,null,null,null,null,null,null,null,null,null,null,null,null,null,null,null,null,null,null,null,null,null,null,{"$f":"IF(A55=\"\",\"\",IF(AND(AH55>0,BB55>(0.25*Cover!$C$44),BB55>50000),\"YES\",\"NO\"))","v":""},null,null,null,null,null,null,null,null,null,null,null,null,""]
[null,null,null,null,null,null,null,null,null,null,null,null,null,null,null,null,null,null,null,null,null,null,null,null,null,null,null,null,null,null,null,null,null,null,null,null,null,null,null,null,{"$f":"IF(A56=\"\",\"\",IF(AND(AH56>0,BB56>(0.25*Cover!$C$44),BB56>50000),\"YES\",\"NO\"))","v":""},null,null,null,null,null,null,null,null,null,null,null,"Deductions",""]
[null,null,null,null,null,null,null,null,null,null,null,null,null,null,null,null,null,null,null,null,null,null,null,null,null,null,null,null,null,null,null,null,null,null,null,null,null,null,null,null,{"$f":"IF(A57=\"\",\"\",IF(AND(AH57>0,BB57>(0.25*Cover!$C$44),BB57>50000),\"YES\",\"NO\"))","v":""},null,null,null,null,null,null,null,null,null,null,null,{"$f":"'POCO Summary'!BA58","v":0},""]
[null,null,null,null,null,null,null,null,null,null,null,null,null,null,null,null,null,null,null,null,null,null,null,null,null,null,null,null,null,null,null,null,null,null,null,null,null,null,null,null,{"$f":"IF(A58=\"\",\"\",IF(AND(AH58>0,BB58>(0.25*Cover!$C$44),BB58>50000),\"YES\",\"NO\"))","v":""},null,null,null,null,null,null,null,null,null,null,null,{"$f":"SUMIF(AH51:AH59,\"<0\",AH51:AH59)","v":0},""]
[null,null,null,null,null,null,null,null,null,null,null,null,null,null,null,null,null,null,null,null,null,null,null,null,null,null,null,null,null,null,null,null,null,null,null,null,null,null,null,null,{"$f":"IF(A59=\"\",\"\",IF(AND(AH59>0,BB59>(0.25*Cover!$C$44),BB59>50000),\"YES\",\"NO\"))","v":""},null,null,null,null,null,null,null,null,null,null,null,{"$f":"SUM(BA57:BA58)","v":0},""]
[null,null,null,null,null,null,null,null,null,null,null,null,null,null,null,null,null,null,null,null,null,null,null,null,null,null,null,null,null,null,null,"Subtotal from Project Order Change Order Summary sheet:",null,{"$f":"'POCO Summary'!AI59","v":0}]
[null,null,null,null,null,null,null,null,null,null,null,null,null,null,null,null,null,null,null,null,null,null,null,null,null,null,null,null,null,null,null,"TOTAL ADDITIONS/DEDUCTIONS (Carry totals forward to Cover sheet.)",null,{"$f":"SUM(AH51:AN60)","v":0}]

{"sheet":"POCO Summary","index":3,"n_rows":59,"n_cols":54,"rows_kept":59,"cut":false,"hidden":false,"merged":[[53,41,53,45],[54,41,54,45],[55,41,55,45],[56,41,56,45],[57,41,57,45],[41,41,41,45],[42,41,42,45],[43,41,43,45],[44,41,44,45],[45,41,45,45],[46,41,46,45],[47,41,47,45],[48,41,48,45],[49,41,49,45],[35,41,35,45],[36,41,36,45],[37,41,37,45],[38,41,38,45],[39,41,39,45],[40,41,40,45],[50,41,50,45],[51,41,51,45],[52,41,52,45],[26,41,26,45],[27,41,27,45],[28,41,28,45],[29,41,29,45],[30,41,30,45],[31,41,31,45],[32,41,32,45],[33,41,33,45],[34,41,34,45],[17,41,17,45],[18,41,18,45],[19,41,19,45],[20,41,20,45],[21,41,21,45],[22,41,22,45],[23,41,23,45],[24,41,24,45],[25,41,25,45],[40,34,40,40],[38,34,38,40],[33,34,33,40],[25,34,25,40],[24,34,24,40],[30,34,30,40],[31,34,31,40],[26,34,26,40],[27,5,27,32],[28,5,28,32],[29,5,29,32],[30,5,30,32],[31,5,31,32],[32,5,32,32],[33,5,33,32],[34,5,34,32],[35,5,35,32],[25,5,25,32],[26,5,26,32],[50,0,50,3],[48,0,48,3],[49,0,49,3],[48,5,48,32],[49,5,49,32],[50,5,50,32],[44,34,44,40],[45,0,45,3],[45,34,45,40],[46,34,46,40],[47,0,47,3],[47,34,47,40],[46,0,46,3],[44,5,44,32],[45,5,45,32],[46,5,46,32],[47,5,47,32],[44,0,44,3],[29,0,29,3],[0,1,0,14],[43,0,43,3],[41,0,41,3],[37,0,37,3],[38,0,38,3],[40,0,40,3],[14,5,14,32],[15,5,15,32],[16,5,16,32],[17,5,17,32],[18,5,18,32],[39,0,39,3],[36,0,36,3],[36,5,36,32],[37,5,37,32],[38,5,38,32],[39,5,39,32],[40,5,40,32],[34,0,34,3],[35,0,35,3],[33,0,33,3],[32,0,32,3],[31,0,31,3],[1,1,1,24],[30,0,30,3],[29,34,29,40],[27,0,27,3],[27,34,27,40],[28,0,28,3],[28,34,28,40],[24,5,24,32],[11,0,11,3],[16,0,16,3],[17,0,17,3],[19,0,19,3],[21,0,21,3],[18,0,18,3],[17,34,17,40],[20,0,20,3],[19,5,19,32],[20,5,20,32],[21,5,21,32],[14,34,14,40],[25,0,25,3],[23,0,23,3],[26,0,26,3],[24,0,24,3],[15,34,15,40],[3,39,3,45],[14,0,14,3],[15,0,15,3],[16,34,16,40],[3,0,3,6],[5,0,5,45],[4,0,4,6],[13,0,13,3],[14,41,14,45],[15,41,15,45],[16,41,16,45],[12,5,13,33],[9,0,9,45],[12,0,12,3],[6,5,6,10],[6,18,6,22],[6,33,6,34],[6,38,6,44],[18,34,18,40],[19,34,19,40],[22,34,22,40],[20,34,20,40],[22,0,22,3],[21,34,21,40],[23,34,23,40],[22,5,22,32],[23,5,23,32],[42,0,42,3],[32,34,32,40],[34,34,34,40],[35,34,35,40],[36,34,36,40],[37,34,37,40],[39,34,39,40],[57,34,57,40],[56,0,56,3],[57,0,57,3],[41,5,41,32],[42,5,42,32],[43,5,43,32],[43,34,43,40],[48,34,48,40],[49,34,49,40],[50,34,50,40],[51,34,51,40],[41,34,41,40],[42,34,42,40],[51,0,51,3],[51,5,51,32],[52,5,52,32],[53,5,53,32],[58,34,58,40],[52,34,52,40],[53,34,53,40],[56,34,56,40],[56,5,56,32],[57,5,57,32],[55,34,55,40],[55,0,55,3],[53,0,53,3],[54,0,54,3],[54,34,54,40],[52,0,52,3],[54,5,54,32],[55,5,55,32]]}
[null,"Go to Navigation Sheet"]
[null,"Go to Sheet 1 (Project Order Change Order Form)"]
[]
[{"$f":"Cover!A6","v":"DGS-30-101"},null,null,null,null,null,null,null,null,null,null,null,null,null,null,null,null,null,null,null,null,null,null,null,null,null,null,null,null,null,null,null,null,null,null,null,null,null,null,{"$f":"Cover!AL6","v":"HECO-11.1ae"}]
[{"$f":"Cover!A7","v":"(Rev. 03/20)"}]
["SUMMARY OF PROJECT ORDER CHANGE ORDERS (continuation sheet)"]
["Proj. Code:",null,null,null,null,{"$f":"Cover!K12","v":0},null,null,null,null,null,"Project Order #:",null,null,null,null,null,null,{"$f":"Cover!K13","v":0},null,null,null,null,"Proj. Ord. Chg Ord. #:",null,null,null,null,null,null,null,null,null,{"$f":"Cover!X9","v":0},null,"Date:",null,null,{"$f":"Cover!AH9","v":"00:00:00"}]
[]
[]
["SUMMARY OF PROJECT ORDER CHANGE ORDERS (continued)"]
["* Breakout detail for current Project Order Change Order on CO-2.3 Summary tab.",null,null,null,null,null,null,null,null,null,null,null,null,null,null,null,null,null,null,null,null,null,null,null,null,null,null,null,null,null,null,null,null,null,null,null,null,null,null,null,null,null,null,"Governor's"]
[null,null,null,null,null,null,null,null,null,null,null,null,null,null,null,null,null,null,null,null,null,null,null,null,null,null,null,null,null,null,null,null,null,null,null,null,null,null,null,null,null,null,null,"Designee's"]
["POCO",null,null,null,null,"Project Order Change Order Description",null,null,null,null,null,null,null,null,null,null,null,null,null,null,null,null,null,null,null,null,null,null,null,null,null,null,null,null,null,null,null,"POCO",null,null,null,null,null,"Approval"]
["Number",null,null,null,null,null,null,null,null,null,null,null,null,null,null,null,null,null,null,null,null,null,null,null,null,null,null,null,null,null,null,null,null,null,null,null,null,"Amount",null,null,null,null,null,"Required?",null,null,null,null,null,null,null,null,null,"Cumulative"]
[null,null,null,null,null,null,null,null,null,null,null,null,null,null,null,null,null,null,null,null,null,null,null,null,null,null,null,null,null,null,null,null,null,null,null,null,null,null,null,null,null,{"$f":"IF(A15=\"\",\"\",IF(AND(AI15>0,BB15>(0.25*Cover!$C$44),BB15>50000),\"YES\",\"NO\"))","v":""},null,null,null,null,null,null,null,null,null,null,null,{"$f":"IF(A15=\"\",\"\",Justification!BB59+AI15)","v":""}]
[null,null,null,null,null,null,null,null,null,null,null,null,null,null,null,null,null,null,null,null,null,null,null,null,null,null,null,null,null,null,null,null,null,null,null,null,null,null,null,null,null,{"$f":"IF(A16=\"\",\"\",IF(AND(AI16>0,BB16>(0.25*Cover!$C$44),BB16>50000),\"YES\",\"NO\"))","v":""},null,null,null,null,null,null,null,null,null,null,null,{"$f":"IF(A16=\"\",\"\",BB15+AI16)","v":""}]
[null,null,null,null,null,null,null,null,null,null,null,null,null,null,null,null,null,null,null,null,null,null,null,null,null,null,null,null,null,null,null,null,null,null,null,null,null,null,null,null,null,{"$f":"IF(A17=\"\",\"\",IF(AND(AI17>0,BB17>(0.25*Cover!$C$44),BB17>50000),\"YES\",\"NO\"))","v":""},null,null,null,null,null,null,null,null,null,null,null,""]
[null,null,null,null,null,null,null,null,null,null,null,null,null,null,null,null,null,null,null,null,null,null,null,null,null,null,null,null,null,null,null,null,null,null,null,null,null,null,null,null,null,{"$f":"IF(A18=\"\",\"\",IF(AND(AI18>0,BB18>(0.25*Cover!$C$44),BB18>50000),\"YES\",\"NO\"))","v":""},null,null,null,null,null,null,null,null,null,null,null,""]
[null,null,null,null,null,null,null,null,null,null,null,null,null,null,null,null,null,null,null,null,null,null,null,null,null,null,null,null,null,null,null,null,null,null,null,null,null,null,null,null,null,{"$f":"IF(A19=\"\",\"\",IF(AND(AI19>0,BB19>(0.25*Cover!$C$44),BB19>50000),\"YES\",\"NO\"))","v":""},null,null,null,null,null,null,null,null,null,null,null,""]
[null,null,null,null,null,null,null,null,null,null,null,null,null,null,null,null,null,null,null,null,null,null,null,null,null,null,null,null,null,null,null,null,null,null,null,null,null,null,null,null,null,{"$f":"IF(A20=\"\",\"\",IF(AND(AI20>0,BB20>(0.25*Cover!$C$44),BB20>50000),\"YES\",\"NO\"))","v":""},null,null,null,null,null,null,null,null,null,null,null,""]
[null,null,null,null,null,null,null,null,null,null,null,null,null,null,null,null,null,null,null,null,null,null,null,null,null,null,null,null,null,null,null,null,null,null,null,null,null,null,null,null,null,{"$f":"IF(A21=\"\",\"\",IF(AND(AI21>0,BB21>(0.25*Cover!$C$44),BB21>50000),\"YES\",\"NO\"))","v":""},null,null,null,null,null,null,null,null,null,null,null,""]
[null,null,null,null,null,null,null,null,null,null,null,null,null,null,null,null,null,null,null,null,null,null,null,null,null,null,null,null,null,null,null,null,null,null,null,null,null,null,null,null,null,{"$f":"IF(A22=\"\",\"\",IF(AND(AI22>0,BB22>(0.25*Cover!$C$44),BB22>50000),\"YES\",\"NO\"))","v":""},null,null,null,null,null,null,null,null,null,null,null,""]
[null,null,null,null,null,null,null,null,null,null,null,null,null,null,null,null,null,null,null,null,null,null,null,null,null,null,null,null,null,null,null,null,null,null,null,null,null,null,null,null,null,{"$f":"IF(A23=\"\",\"\",IF(AND(AI23>0,BB23>(0.25*Cover!$C$44),BB23>50000),\"YES\",\"NO\"))","v":""},null,null,null,null,null,null,null,null,null,null,null,""]
[null,null,null,null,null,null,null,null,null,null,null,null,null,null,null,null,null,null,null,null,null,null,null,null,null,null,null,null,null,null,null,null,null,null,null,null,null,null,null,null,null,{"$f":"IF(A24=\"\",\"\",IF(AND(AI24>0,BB24>(0.25*Cover!$C$44),BB24>50000),\"YES\",\"NO\"))","v":""},null,null,null,null,null,null,null,null,null,null,null,""]
[null,null,null,null,null,null,null,null,null,null,null,null,null,null,null,null,null,null,null,null,null,null,null,null,null,null,null,null,null,null,null,null,null,null,null,null,null,null,null,null,null,{"$f":"IF(A25=\"\",\"\",IF(AND(AI25>0,BB25>(0.25*Cover!$C$44),BB25>50000),\"YES\",\"NO\"))","v":""},null,null,null,null,null,null,null,null,null,null,null,""]
[null,null,null,null,null,null,null,null,null,null,null,null,null,null,null,null,null,null,null,null,null,null,null,null,null,null,null,null,null,null,null,null,null,null,null,null,null,null,null,null,null,{"$f":"IF(A26=\"\",\"\",IF(AND(AI26>0,BB26>(0.25*Cover!$C$44),BB26>50000),\"YES\",\"NO\"))","v":""},null,null,null,null,null,null,null,null,null,null,null,""]
[null,null,null,null,null,null,null,null,null,null,null,null,null,null,null,null,null,null,null,null,null,null,null,null,null,null,null,null,null,null,null,null,null,null,null,null,null,null,null,null,null,{"$f":"IF(A27=\"\",\"\",IF(AND(AI27>0,BB27>(0.25*Cover!$C$44),BB27>50000),\"YES\",\"NO\"))","v":""},null,null,null,null,null,null,null,null,null,null,null,""]
[null,null,null,null,null,null,null,null,null,null,null,null,null,null,null,null,null,null,null,null,null,null,null,null,null,null,null,null,null,null,null,null,null,null,null,null,null,null,null,null,null,{"$f":"IF(A28=\"\",\"\",IF(AND(AI28>0,BB28>(0.25*Cover!$C$44),BB28>50000),\"YES\",\"NO\"))","v":""},null,null,null,null,null,null,null,null,null,null,null,""]
[null,null,null,null,null,null,null,null,null,null,null,null,null,null,null,null,null,null,null,null,null,null,null,null,null,null,null,null,null,null,null,null,null,null,null,null,null,null,null,null,null,{"$f":"IF(A29=\"\",\"\",IF(AND(AI29>0,BB29>(0.25*Cover!$C$44),BB29>50000),\"YES\",\"NO\"))","v":""},null,null,null,null,null,null,null,null,null,null,null,""]
[null,null,null,null,null,null,null,null,null,null,null,null,null,null,null,null,null,null,null,null,null,null,null,null,null,null,null,null,null,null,null,null,null,null,null,null,null,null,null,null,null,{"$f":"IF(A30=\"\",\"\",IF(AND(AI30>0,BB30>(0.25*Cover!$C$44),BB30>50000),\"YES\",\"NO\"))","v":""},null,null,null,null,null,null,null,null,null,null,null,""]
[null,null,null,null,null,null,null,null,null,null,null,null,null,null,null,null,null,null,null,null,null,null,null,null,null,null,null,null,null,null,null,null,null,null,null,null,null,null,null,null,null,{"$f":"IF(A31=\"\",\"\",IF(AND(AI31>0,BB31>(0.25*Cover!$C$44),BB31>50000),\"YES\",\"NO\"))","v":""},null,null,null,null,null,null,null,null,null,null,null,""]
[null,null,null,null,null,null,null,null,null,null,null,null,null,null,null,null,null,null,null,null,null,null,null,null,null,null,null,null,null,null,null,null,null,null,null,null,null,null,null,null,null,{"$f":"IF(A32=\"\",\"\",IF(AND(AI32>0,BB32>(0.25*Cover!$C$44),BB32>50000),\"YES\",\"NO\"))","v":""},null,null,null,null,null,null,null,null,null,null,null,""]
[null,null,null,null,null,null,null,null,null,null,null,null,null,null,null,null,null,null,null,null,null,null,null,null,null,null,null,null,null,null,null,null,null,null,null,null,null,null,null,null,null,{"$f":"IF(A33=\"\",\"\",IF(AND(AI33>0,BB33>(0.25*Cover!$C$44),BB33>50000),\"YES\",\"NO\"))","v":""},null,null,null,null,null,null,null,null,null,null,null,""]
[null,null,null,null,null,null,null,null,null,null,null,null,null,null,null,null,null,null,null,null,null,null,null,null,null,null,null,null,null,null,null,null,null,null,null,null,null,null,null,null,null,{"$f":"IF(A34=\"\",\"\",IF(AND(AI34>0,BB34>(0.25*Cover!$C$44),BB34>50000),\"YES\",\"NO\"))","v":""},null,null,null,null,null,null,null,null,null,null,null,""]
[null,null,null,null,null,null,null,null,null,null,null,null,null,null,null,null,null,null,null,null,null,null,null,null,null,null,null,null,null,null,null,null,null,null,null,null,null,null,null,null,null,{"$f":"IF(A35=\"\",\"\",IF(AND(AI35>0,BB35>(0.25*Cover!$C$44),BB35>50000),\"YES\",\"NO\"))","v":""},null,null,null,null,null,null,null,null,null,null,null,""]
[null,null,null,null,null,null,null,null,null,null,null,null,null,null,null,null,null,null,null,null,null,null,null,null,null,null,null,null,null,null,null,null,null,null,null,null,null,null,null,null,null,{"$f":"IF(A36=\"\",\"\",IF(AND(AI36>0,BB36>(0.25*Cover!$C$44),BB36>50000),\"YES\",\"NO\"))","v":""},null,null,null,null,null,null,null,null,null,null,null,""]
[null,null,null,null,null,null,null,null,null,null,null,null,null,null,null,null,null,null,null,null,null,null,null,null,null,null,null,null,null,null,null,null,null,null,null,null,null,null,null,null,null,{"$f":"IF(A37=\"\",\"\",IF(AND(AI37>0,BB37>(0.25*Cover!$C$44),BB37>50000),\"YES\",\"NO\"))","v":""},null,null,null,null,null,null,null,null,null,null,null,""]
[null,null,null,null,null,null,null,null,null,null,null,null,null,null,null,null,null,null,null,null,null,null,null,null,null,null,null,null,null,null,null,null,null,null,null,null,null,null,null,null,null,{"$f":"IF(A38=\"\",\"\",IF(AND(AI38>0,BB38>(0.25*Cover!$C$44),BB38>50000),\"YES\",\"NO\"))","v":""},null,null,null,null,null,null,null,null,null,null,null,""]
[null,null,null,null,null,null,null,null,null,null,null,null,null,null,null,null,null,null,null,null,null,null,null,null,null,null,null,null,null,null,null,null,null,null,null,null,null,null,null,null,null,{"$f":"IF(A39=\"\",\"\",IF(AND(AI39>0,BB39>(0.25*Cover!$C$44),BB39>50000),\"YES\",\"NO\"))","v":""},null,null,null,null,null,null,null,null,null,null,null,""]
[null,null,null,null,null,null,null,null,null,null,null,null,null,null,null,null,null,null,null,null,null,null,null,null,null,null,null,null,null,null,null,null,null,null,null,null,null,null,null,null,null,{"$f":"IF(A40=\"\",\"\",IF(AND(AI40>0,BB40>(0.25*Cover!$C$44),BB40>50000),\"YES\",\"NO\"))","v":""},null,null,null,null,null,null,null,null,null,null,null,""]
[null,null,null,null,null,null,null,null,null,null,null,null,null,null,null,null,null,null,null,null,null,null,null,null,null,null,null,null,null,null,null,null,null,null,null,null,null,null,null,null,null,{"$f":"IF(A41=\"\",\"\",IF(AND(AI41>0,BB41>(0.25*Cover!$C$44),BB41>50000),\"YES\",\"NO\"))","v":""},null,null,null,null,null,null,null,null,null,null,null,""]
[null,null,null,null,null,null,null,null,null,null,null,null,null,null,null,null,null,null,null,null,null,null,null,null,null,null,null,null,null,null,null,null,null,null,null,null,null,null,null,null,null,{"$f":"IF(A42=\"\",\"\",IF(AND(AI42>0,BB42>(0.25*Cover!$C$44),BB42>50000),\"YES\",\"NO\"))","v":""},null,null,null,null,null,null,null,null,null,null,null,""]
[null,null,null,null,null,null,null,null,null,null,null,null,null,null,null,null,null,null,null,null,null,null,null,null,null,null,null,null,null,null,null,null,null,null,null,null,null,null,null,null,null,{"$f":"IF(A43=\"\",\"\",IF(AND(AI43>0,BB43>(0.25*Cover!$C$44),BB43>50000),\"YES\",\"NO\"))","v":""},null,null,null,null,null,null,null,null,null,null,null,""]
[null,null,null,null,null,null,null,null,null,null,null,null,null,null,null,null,null,null,null,null,null,null,null,null,null,null,null,null,null,null,null,null,null,null,null,null,null,null,null,null,null,{"$f":"IF(A44=\"\",\"\",IF(AND(AI44>0,BB44>(0.25*Cover!$C$44),BB44>50000),\"YES\",\"NO\"))","v":""},null,null,null,null,null,null,null,null,null,null,null,""]
[null,null,null,null,null,null,null,null,null,null,null,null,null,null,null,null,null,null,null,null,null,null,null,null,null,null,null,null,null,null,null,null,null,null,null,null,null,null,null,null,null,{"$f":"IF(A45=\"\",\"\",IF(AND(AI45>0,BB45>(0.25*Cover!$C$44),BB45>50000),\"YES\",\"NO\"))","v":""},null,null,null,null,null,null,null,null,null,null,null,""]
[null,null,null,null,null,null,null,null,null,null,null,null,null,null,null,null,null,null,null,null,null,null,null,null,null,null,null,null,null,null,null,null,null,null,null,null,null,null,null,null,null,{"$f":"IF(A46=\"\",\"\",IF(AND(AI46>0,BB46>(0.25*Cover!$C$44),BB46>50000),\"YES\",\"NO\"))","v":""},null,null,null,null,null,null,null,null,null,null,null,""]
[null,null,null,null,null,null,null,null,null,null,null,null,null,null,null,null,null,null,null,null,null,null,null,null,null,null,null,null,null,null,null,null,null,null,null,null,null,null,null,null,null,{"$f":"IF(A47=\"\",\"\",IF(AND(AI47>0,BB47>(0.25*Cover!$C$44),BB47>50000),\"YES\",\"NO\"))","v":""},null,null,null,null,null,null,null,null,null,null,null,""]
[null,null,null,null,null,null,null,null,null,null,null,null,null,null,null,null,null,null,null,null,null,null,null,null,null,null,null,null,null,null,null,null,null,null,null,null,null,null,null,null,null,{"$f":"IF(A48=\"\",\"\",IF(AND(AI48>0,BB48>(0.25*Cover!$C$44),BB48>50000),\"YES\",\"NO\"))","v":""},null,null,null,null,null,null,null,null,null,null,null,""]
[null,null,null,null,null,null,null,null,null,null,null,null,null,null,null,null,null,null,null,null,null,null,null,null,null,null,null,null,null,null,null,null,null,null,null,null,null,null,null,null,null,{"$f":"IF(A49=\"\",\"\",IF(AND(AI49>0,BB49>(0.25*Cover!$C$44),BB49>50000),\"YES\",\"NO\"))","v":""},null,null,null,null,null,null,null,null,null,null,null,""]
[null,null,null,null,null,null,null,null,null,null,null,null,null,null,null,null,null,null,null,null,null,null,null,null,null,null,null,null,null,null,null,null,null,null,null,null,null,null,null,null,null,{"$f":"IF(A50=\"\",\"\",IF(AND(AI50>0,BB50>(0.25*Cover!$C$44),BB50>50000),\"YES\",\"NO\"))","v":""},null,null,null,null,null,null,null,null,null,null,null,""]
[null,null,null,null,null,null,null,null,null,null,null,null,null,null,null,null,null,null,null,null,null,null,null,null,null,null,null,null,null,null,null,null,null,null,null,null,null,null,null,null,null,{"$f":"IF(A51=\"\",\"\",IF(AND(AI51>0,BB51>(0.25*Cover!$C$44),BB51>50000),\"YES\",\"NO\"))","v":""},null,null,null,null,null,null,null,null,null,null,null,""]
[null,null,null,null,null,null,null,null,null,null,null,null,null,null,null,null,null,null,null,null,null,null,null,null,null,null,null,null,null,null,null,null,null,null,null,null,null,null,null,null,null,{"$f":"IF(A52=\"\",\"\",IF(AND(AI52>0,BB52>(0.25*Cover!$C$44),BB52>50000),\"YES\",\"NO\"))","v":""},null,null,null,null,null,null,null,null,null,null,null,""]
[null,null,null,null,null,null,null,null,null,null,null,null,null,null,null,null,null,null,null,null,null,null,null,null,null,null,null,null,null,null,null,null,null,null,null,null,null,null,null,null,null,{"$f":"IF(A53=\"\",\"\",IF(AND(AI53>0,BB53>(0.25*Cover!$C$44),BB53>50000),\"YES\",\"NO\"))","v":""},null,null,null,null,null,null,null,null,null,null,null,""]
[null,null,null,null,null,null,null,null,null,null,null,null,null,null,null,null,null,null,null,null,null,null,null,null,null,null,null,null,null,null,null,null,null,null,null,null,null,null,null,null,null,{"$f":"IF(A54=\"\",\"\",IF(AND(AI54>0,BB54>(0.25*Cover!$C$44),BB54>50000),\"YES\",\"NO\"))","v":""},null,null,null,null,null,null,null,null,null,null,"Additions",""]
[null,null,null,null,null,null,null,null,null,null,null,null,null,null,null,null,null,null,null,null,null,null,null,null,null,null,null,null,null,null,null,null,null,null,null,null,null,null,null,null,null,{"$f":"IF(A55=\"\",\"\",IF(AND(AI55>0,BB55>(0.25*Cover!$C$44),BB55>50000),\"YES\",\"NO\"))","v":""},null,null,null,null,null,null,null,null,null,null,{"$f":"SUMIF(AI15:AI58,\">0\",AI15:AI58)","v":0},""]
[null,null,null,null,null,null,null,null,null,null,null,null,null,null,null,null,null,null,null,null,null,null,null,null,null,null,null,null,null,null,null,null,null,null,null,null,null,null,null,null,null,{"$f":"IF(A56=\"\",\"\",IF(AND(AI56>0,BB56>(0.25*Cover!$C$44),BB56>50000),\"YES\",\"NO\"))","v":""},null,null,null,null,null,null,null,null,null,null,null,""]
[null,null,null,null,null,null,null,null,null,null,null,null,null,null,null,null,null,null,null,null,null,null,null,null,null,null,null,null,null,null,null,null,null,null,null,null,null,null,null,null,null,{"$f":"IF(A57=\"\",\"\",IF(AND(AI57>0,BB57>(0.25*Cover!$C$44),BB57>50000),\"YES\",\"NO\"))","v":""},null,null,null,null,null,null,null,null,null,null,"Deductions",""]
[null,null,null,null,null,null,null,null,null,null,null,null,null,null,null,null,null,null,null,null,null,null,null,null,null,null,null,null,null,null,null,null,null,null,null,null,null,null,null,null,null,{"$f":"IF(A58=\"\",\"\",IF(AND(AI58>0,BB58>(0.25*Cover!$C$44),BB58>50000),\"YES\",\"NO\"))","v":""},null,null,null,null,null,null,null,null,null,null,{"$f":"SUMIF(AI15:AI58,\"<0\",AI15:AI58)","v":0},""]
[null,null,null,null,null,null,null,null,null,null,null,null,null,null,null,null,null,null,null,null,null,null,null,null,null,"TOTAL ADDITIONS/DEDUCTIONS (Carry totals forward to Sheet 2.)",null,null,null,null,null,null,null,null,{"$f":"SUM(AI15:AO58)","v":0}]

{"sheet":"Description","index":4,"n_rows":10,"n_cols":39,"rows_kept":10,"cut":false,"hidden":false,"merged":[[0,1,0,15],[11,1,56,43],[9,15,9,28],[5,0,5,44],[3,0,3,6],[3,38,3,44],[4,0,4,6],[6,38,6,44],[1,1,1,21],[6,5,6,10],[6,18,6,22],[6,33,6,34]]}
[null,"Go to Navigation Sheet"]
[null,"Go to Sheet 1 (Project Order Change Order Form)"]
[]
[{"$f":"Cover!A6","v":"DGS-30-101"},null,null,null,null,null,null,null,null,null,null,null,null,null,null,null,null,null,null,null,null,null,null,null,null,null,null,null,null,null,null,null,null,null,null,null,null,null,{"$f":"Cover!AL6","v":"HECO-11.1ae"}]
[{"$f":"Cover!A7","v":"(Rev. 03/20)"}]
["A/E PROJECT ORDER CHANGE ORDER (Continuation Sheet)"]
["Proj. Code:",null,null,null,null,{"$f":"Cover!K12","v":0},null,null,null,null,null,"Project Order #:",null,null,null,null,null,null,{"$f":"Cover!K13","v":0},null,null,null,null,"Proj. Ord. Chg Ord. #:",null,null,null,null,null,null,null,null,null,{"$f":"Cover!X9","v":0},null,"Date:",null,null,{"$f":"Cover!AH9","v":"00:00:00"}]
[]
[]
[null,null,null,null,null,null,null,null,null,null,null,null,null,null,null,"DESCRIBE CHANGE (continued)"]

{"sheet":"CO-2.3 Summary","index":5,"n_rows":45,"n_cols":6,"rows_kept":45,"cut":false,"hidden":false,"merged":[[0,0,0,1],[12,1,12,2],[11,1,11,2],[24,1,24,2],[13,1,13,2],[14,1,14,2],[15,1,15,2],[16,1,16,2],[17,1,17,2],[18,1,18,2],[34,1,34,2],[19,1,19,2],[20,1,20,2],[21,1,21,2],[22,1,22,2],[23,1,23,2],[25,1,25,2],[26,1,26,2],[27,1,27,2],[28,1,28,2],[29,1,29,2],[30,1,30,2],[31,1,31,2],[32,1,32,2],[33,1,33,2],[35,1,35,2],[43,1,43,2],[37,1,37,2],[38,1,38,2],[39,1,39,2],[40,1,40,2],[41,1,41,2],[42,1,42,2],[36,1,36,2]]}
["Go to Navigation Sheet"]
[{"$f":"Cover!A6","v":"DGS-30-101"},{"$f":"Cover!A7","v":"(Rev. 03/20)"}]
[]
["ARCHITECT/ENGINEER PROJECT ORDER CHANGE ORDER SUMMARY WORKSHEET"]
["Project Order Change Order #:",null,{"$f":"Cover!X9","v":0},null,"Date:  ",{"$f":"Cover!AH9","v":"00:00:00"}]
["Project Code:",null,{"$f":"Cover!K12","v":0}]
["Project Order Number",null,{"$f":"Cover!K13","v":0}]
["Institution/Agency:",null,{"$f":"Cover!K14","v":"The College of William and Mary in Virginia"}]
["Project Title:",null,{"$f":"Cover!K15","v":0}]
["*NOTE:  Complete a CO-2.3 detailing the additional cost for each firm involved in each Change Item and enter the total in the column provided."]
[]
["Change Item","Description",null,"Firm Name","Discipline","Total from CO-2.3"]
[]
[]
[]
[]
[]
[]
[]
[]
[]
[]
[]
[]
[]
[]
[]
[]
[]
[]
[]
[]
[]
[]
[]
[]
[]
[]
[]
[]
[]
[]
[]
[]
[null,null,null,null,"TOTAL",{"$f":"SUM(F13:F44)","v":0}]